[Event "22nd OIBM 2018"]
[Site "Gmund am Tegernsee"]
[Date "2018.11.01"]
[Round "6"]
[White "Colpe, Malte"]
[Black "Konik, Michael"]
[Result "1/2-1/2"]
[ECO "B01"]
[WhiteElo "2379"]
[BlackElo "2083"]
[Annotator "NA"]
[PlyCount "81"]
[EventDate "2018.10.27"]
[EventType "swiss"]
[EventCountry "GER"]
[SourceTitle "playchess.com"]
[Source "ChessBase"]
[SourceQuality "1"]
[TimeControl "40/5400+30:1800+30"]

1. e4 {[%emt 0:00:00]} d5 {[%emt 0:00:00]} 2. exd5 {[%emt 0:00:00]} Qxd5 {[%emt 0:00:00]} 3. Nc3 {[%emt 0:00:00]} Qa5 {[%emt 0:00:00]} 4. d4 {[%emt 0:00:00]} Nf6 {[%emt 0:00:00]} 5. Bc4 {[%emt 0:00:33]} c6 {[%emt 0:00:23]} 6. Bd2 {[%emt 0:00:25]} Bf5 {[%emt 0:02:00]} 7. Nd5 {[%emt 0:00:29]} Qd8 {[%emt 0:00:52]} 8. Nxf6+ {[%emt 0:00:09]} gxf6 {[%emt 0:02:14]} 9. Nf3 {[%emt 0:00:51] B01: Scandinavian Defence} Rg8 {[%emt 0:11:11]} (9... e6 10. O-O Nd7 11. Re1 Nb6 12. Bf1 Bg7 13. Nh4 Bg6 14. c3 O-O 15. g3 Rc8 16. a4 Re8 17. Qb3 Rc7 18. Bg2 Rd7 19. a5 Nd5 20. c4 Ne7 {½-½ (20) Gharamian,T (2660)-Bauer,C (2625) Germany 2016}) 10. c3 {[%emt 0:08:32]} Qd6 $146 {[%emt 0:07:21]} ({Predecessor:} 10... e6 11. Qe2 Nd7 12. Nh4 Bg4 13. f3 f5 14. g3 Bh3 15. O-O-O Qf6 16. d5 cxd5 17. Bxd5 {0-1 (49) Jonsson,K (2228)-Hess,H (2335) ICCF email 2009}) 11. Qb3 {[%emt 0:06:15]} Be6 {[%emt 0:04:04]} 12. Qxb7 {[%emt 0:14:06]} Bxc4 {[%emt 0:01:18]} 13. Qxa8 {[%emt 0:01:11]} Qc7 {[%emt 0:01:46]} 14. d5 {[%emt 0:10:34]} Bxd5 {[%emt 0:03:36]} 15. Be3 {[%emt 0:00:49]} Rxg2 {[%emt 0:06:34]} 16. Bxa7 {[%emt 0:22:13]} Bxf3 {[%emt 0:02:02]} 17. Qxb8+ {[%emt 0:00:57]} Qxb8 {[%emt 0:01:08]} 18. Bxb8 {[%emt 0:00:06]} Rg4 {[%emt 0:10:39]} 19. Rf1 {[%emt 0:00:47]} e5 {[%emt 0:14:47]} 20. Kd2 {[%emt 0:07:27]} Bh6+ {[%emt 0:13:48]} 21. Kd3 {[%emt 0:00:47]} Bf4 {[%emt 0:04:43]} 22. Ba7 {[%emt 0:03:40]} Bxh2 {[%emt 0:00:52]} 23. b3 {[%emt 0:01:30]} f5 {[%emt 0:02:17]} 24. a4 {[%emt 0:01:04]} Rg6 {[%emt 0:02:19]} 25. Bc5 {[%emt 0:01:10]} Kd7 {[%emt 0:01:39]} 26. a5 {[%emt 0:00:40]} Kc8 {[%emt 0:00:31]} 27. a6 {[%emt 0:00:25]} Kb8 {[%emt 0:00:02]} 28. a7+ {[%emt 0:03:33]} Ka8 {[%emt 0:00:02]} 29. Ke3 {[%emt 0:03:11]} e4 {[%emt 0:01:16]} 30. b4 {[%emt 0:01:11]} Be5 {[%emt 0:01:20]} 31. Rg1 {[%emt 0:06:13]} Bxc3 {[%emt 0:00:16]} 32. Rxg6 {[%emt 0:00:21]} fxg6 {[%emt 0:00:08]} 33. Ra6 {[%emt 0:00:19]} g5 {[%emt 0:00:52]} 34. Bd6 {[%emt 0:02:31]} f4+ {[%emt 0:00:06]} 35. Bxf4 {[%emt 0:00:04]} gxf4+ {[%emt 0:00:06]} 36. Kxf4 {[%emt 0:00:04]} Bxb4 {[%emt 0:00:14]} ({Better is} 36... Bd2+ $17 37. Kg3 h5 38. Rxc6 Kxa7) 37. Rxc6 {[%emt 0:00:42] [#]} Kxa7 {[%emt 0:00:25]} (37... h5 $1 $17 38. Rc4 Bd6+ 39. Kg5 Kxa7) 38. Rc7+ {[%emt 0:00:59]} (38. Re6 $11 {remains equal.}) 38... Kb6 {[%emt 0:00:17]} 39. Rxh7 {[%emt 0:00:05]} Bd6+ {[%emt 0:00:37]} 40. Kf5 {[%emt 0:00:38]} Bc5 {[%emt 0:00:18]} 41. Rh4 $11 {[%emt 0:30:18]} 1/2-1/2

[Event "22nd OIBM 2018"]
[Site "Gmund am Tegernsee"]
[Date "2018.11.01"]
[Round "6"]
[White "Forchert, Martin"]
[Black "Baeuml, Ulrich"]
[Result "1-0"]
[ECO "C06"]
[WhiteElo "2363"]
[BlackElo "2088"]
[Annotator "NA"]
[PlyCount "74"]
[EventDate "2018.10.27"]
[EventType "swiss"]
[EventCountry "GER"]
[SourceTitle "playchess.com"]
[Source "ChessBase"]
[SourceQuality "1"]
[TimeControl "40/5400+30:1800+30"]

1. e4 {[%emt 0:00:00]} e6 {[%emt 0:00:00]} 2. d4 {[%emt 0:00:00]} d5 {[%emt 0:00:00]} 3. Nd2 {[%emt 0:00:00]} Nf6 {[%emt 0:00:26]} 4. e5 {[%emt 0:00:00]} Nfd7 {[%emt 0:00:07]} 5. Bd3 {[%emt 0:00:04]} c5 {[%emt 0:00:21]} 6. c3 {[%emt 0:00:06]} Nc6 {[%emt 0:00:15]} 7. Ne2 {[%emt 0:00:26]} cxd4 {[%emt 0:00:36]} 8. cxd4 {[%emt 0:00:06]} f6 {[%emt 0:00:19]} 9. exf6 {[%emt 0:00:09]} Nxf6 {[%emt 0:00:08]} 10. Nf3 {[%emt 0:00:13]} Qc7 {[%emt 0:01:14]} 11. O-O {[%emt 0:02:22]} Bd6 {[%emt 0:00:08]} 12. h3 {[%emt 0:00:59]} O-O {[%emt 0:00:52]} 13. Be3 {[%emt 0:00:23]} Bd7 {[%emt 0:01:03]} 14. Rc1 {[%emt 0:00:17]} Rae8 {[%emt 0:10:27]} 15. Nc3 {[%emt 0:06:48] C06: French Tarrasch: 3...Nf6 4 e5 Nfd7 5 Bd3 main lines} Qb8 {[%emt 0:02:27]} 16. Nb5 $146 {[%emt 0:09:08]} ({Predecessor:} 16. Bb1 Re7 17. Nb5 Bf4 18. Re1 Be8 19. Qd2 Ne4 20. Bxe4 dxe4 21. Bxf4 Qxf4 22. Qxf4 Rxf4 {½-½ (35) Oll,L (2405)-Ivanchuk,V (2390) Tallinn 1986}) 16... Bf4 {[%emt 0:00:34]} 17. Qd2 {[%emt 0:20:02]} Ne4 {[%emt 0:13:34]} 18. Bxe4 {[%emt 0:14:47]} dxe4 {[%emt 0:00:27]} 19. Bxf4 {[%emt 0:00:38]} Qxf4 {[%emt 0:03:23]} 20. Qxf4 {[%emt 0:00:25]} Rxf4 {[%emt 0:00:03]} 21. Nd2 {[%emt 0:00:13]} Ref8 {[%emt 0:08:21]} 22. g3 {[%emt 0:21:11]} R4f5 {[%emt 0:03:32]} 23. Nd6 {[%emt 0:00:44]} Rd5 {[%emt 0:09:17]} 24. N2xe4 {[%emt 0:02:44]} Nxd4 {[%emt 0:01:55]} 25. Rc7 {[%emt 0:00:07]} Nf3+ {[%emt 0:01:17]} 26. Kg2 {[%emt 0:00:08]} Nd2 {[%emt 0:07:35]} 27. Nxd2 {[%emt 0:02:54]} Rxd6 {[%emt 0:00:13]} 28. Nc4 {[%emt 0:00:34]} Bc6+ {[%emt 0:05:32]} 29. f3 {[%emt 0:00:48]} Rd5 {[%emt 0:03:31]} 30. b3 {[%emt 0:02:29]} Rdf5 {[%emt 0:07:34]} 31. Nd2 {[%emt 0:00:09]} Ra5 {[%emt 0:03:58]} 32. a4 {[%emt 0:00:53]} Rc5 $15 {[%emt 0:02:38]} 33. Re7 {[%emt 0:01:35]} Bd5 {[%emt 0:01:23]} 34. Rf2 {[%emt 0:09:04]} Rc3 {[%emt 0:05:42]} 35. h4 {[%emt 0:03:36]} h6 {[%emt 0:00:40]} 36. g4 {[%emt 0:01:47]} Rd8 {[%emt 0:00:37]} 37. Ne4 {[%emt 0:01:52]} Rcc8 {[%emt 0:00:59]} 1-0

[Event "22nd OIBM 2018"]
[Site "Gmund am Tegernsee"]
[Date "2018.11.01"]
[Round "6"]
[White "Fischer, Daniel"]
[Black "Bajorski, Marius"]
[Result "1-0"]
[ECO "C54"]
[WhiteElo "2336"]
[BlackElo "2083"]
[Annotator "NA"]
[PlyCount "59"]
[EventDate "2018.10.27"]
[EventType "swiss"]
[EventCountry "GER"]
[SourceTitle "playchess.com"]
[Source "ChessBase"]
[SourceQuality "1"]
[TimeControl "40/5400+30:1800+30"]

1. e4 {[%emt 0:00:00] Stohl,I} e5 {[%emt 0:00:00]} 2. Nf3 {[%emt 0:00:00]} Nc6 {[%emt 0:00:00]} 3. Bc4 {[%emt 0:00:00]} Bc5 {[%emt 0:00:00]} 4. c3 {[%emt 0:00:00]} Nf6 {[%emt 0:00:00]} 5. d3 {[%emt 0:00:07]} a6 {[%emt 0:00:00]} 6. a4 {[%emt 0:00:24] C54: Italienische Partie (Hauptvariante)} d6 {[%emt 0:04:31]} 7. O-O {[%emt 0:01:38]} Ba7 {[%emt 0:06:00]} 8. Nbd2 {[%emt 0:00:48]} h6 {[%emt 0:01:39]} 9. Re1 {[%emt 0:03:50]} O-O {[%emt 0:02:06]} 10. h3 {[%emt 0:00:43]} Be6 {[%emt 0:00:57]} 11. Bxe6 {[%emt 0:09:35]} fxe6 {[%emt 0:00:05]} 12. Nf1 {[%emt 0:01:08]} Qd7 $146 {[%emt 0:06:42]} ({Vorgänger:} 12... Nh5 13. Be3 a5 14. Bxa7 Rxa7 15. d4 Qf6 {0-1 (45) Ding,L (2777)-Giri,A (2772) Wenzhou 2017 CBM 180 [Stohl,I]}) 13. Be3 {[%emt 0:02:12]} Kh7 {[%emt 0:04:35]} 14. Bxa7 {[%emt 0:04:58]} Nxa7 {[%emt 0:02:39]} 15. d4 {[%emt 0:02:52]} Nc6 {[%emt 0:04:04]} 16. a5 {[%emt 0:11:03]} Rad8 {[%emt 0:06:50]} 17. Ng3 {[%emt 0:02:46]} Rf7 {[%emt 0:03:21]} 18. Qb3 {[%emt 0:07:40]} Qc8 {[%emt 0:01:11]} 19. Qc2 {[%emt 0:10:11]} Kg8 {[%emt 0:03:36]} 20. b4 {[%emt 0:03:28]} exd4 {[%emt 0:05:56]} 21. Nxd4 {[%emt 0:00:35]} e5 {[%emt 0:01:24]} 22. Nxc6 {[%emt 0:02:53]} bxc6 {[%emt 0:00:05]} 23. Qb3 {[%emt 0:01:05]} Qb7 {[%emt 0:00:40]} 24. c4 $14 {[%emt 0:05:41]} Nd7 {[%emt 0:05:31]} 25. Rab1 {[%emt 0:05:48]} Nf8 {[%emt 0:03:10]} 26. Nf5 {[%emt 0:02:41]} Rb8 {[%emt 0:02:59]} 27. c5 {[%emt 0:03:35]} dxc5 {[%emt 0:02:13]} 28. Ne7+ {[%emt 0:00:59]} Kh8 {[%emt 0:01:15]} 29. Qxf7 {[%emt 0:00:10]} Qxb4 {[%emt 0:00:08]} 30. Qg8# 1-0

[Event "22nd OIBM 2018"]
[Site "Gmund am Tegernsee"]
[Date "2018.11.01"]
[Round "6"]
[White "Schuster, Karsten"]
[Black "Bohnhoff, Peter"]
[Result "1-0"]
[ECO "A88"]
[WhiteElo "2283"]
[BlackElo "2065"]
[Annotator "ChessBase"]
[PlyCount "71"]
[EventDate "2018.10.27"]
[EventType "swiss"]
[EventCountry "GER"]
[SourceTitle "playchess.com"]
[Source "ChessBase"]
[SourceQuality "1"]
[TimeControl "40/5400+30:1800+30"]

1. d4 {[%emt 0:00:00]} f5 {[%emt 0:00:00]} 2. c4 {[%emt 0:00:00]} Nf6 {[%emt 0:00:00]} 3. g3 {[%emt 0:00:00]} g6 {[%emt 0:00:06]} 4. Bg2 {[%emt 0:00:03]} Bg7 {[%emt 0:00:15]} 5. Nf3 {[%emt 0:00:05]} d6 {[%emt 0:00:19]} 6. O-O {[%emt 0:00:06]} O-O {[%emt 0:00:12]} 7. Nc3 {[%emt 0:00:28]} c6 {[%emt 0:00:37]} 8. b3 {[%emt 0:00:13]} Na6 {[%emt 0:02:02]} 9. Bb2 {[%emt 0:01:34]} Qc7 {[%emt 0:04:04]} 10. Re1 {[%emt 0:04:58]} e5 {[%emt 0:21:25]} 11. dxe5 {[%emt 0:10:45]} dxe5 {[%emt 0:00:16]} 12. e4 {[%emt 0:00:14]} Nc5 {[%emt 0:08:37]} 13. exf5 {[%emt 0:09:25]} e4 {[%emt 0:09:35]} 14. Ng5 {[%emt 0:15:54]} gxf5 {[%emt 0:01:57]} 15. Bf1 {[%emt 0:06:26]} h6 {[%emt 0:04:31]} 16. Nh3 {[%emt 0:01:46]} Be6 {[%emt 0:01:47]} 17. Nf4 {[%emt 0:00:41]} Rad8 {[%emt 0:03:05]} 18. Qc2 {[%emt 0:02:31]} Bc8 {[%emt 0:01:32]} 19. Ba3 {[%emt 0:05:41]} b6 {[%emt 0:03:25]} 20. Rad1 {[%emt 0:06:23]} Rfe8 {[%emt 0:05:02]} 21. Bh3 {[%emt 0:02:52]} Ne6 {[%emt 0:05:20]} 22. Nxe6 {[%emt 0:06:06]} Bxe6 {[%emt 0:00:21]} 23. Ne2 {[%emt 0:00:28]} c5 {[%emt 0:05:24]} 24. Nf4 {[%emt 0:00:29]} Bc8 {[%emt 0:06:32]} 25. Bb2 {[%emt 0:00:50]} Qf7 {[%emt 0:05:24]} 26. Rxd8 {[%emt 0:04:18]} Rxd8 {[%emt 0:00:06]} 27. Rd1 {[%emt 0:00:07]} Rxd1+ {[%emt 0:01:18]} 28. Qxd1 {[%emt 0:00:05]} Qd7 {[%emt 0:04:12]} 29. Qa1 {[%emt 0:01:57]} Qf7 {[%emt 0:02:29]} 30. Be5 {[%emt 0:04:28]} Nh7 {[%emt 0:02:31]} 31. Nd5 {[%emt 0:02:20]} Ng5 {[%emt 0:00:43]} 32. Bg2 {[%emt 0:00:16]} Bb7 {[%emt 0:01:14]} 33. h4 {[%emt 0:06:57]} Ne6 {[%emt 0:00:11]} 34. Nf6+ {[%emt 0:00:54]} Kf8 {[%emt 0:00:46]} 35. Bh3 {[%emt 0:01:27]} Nd4 {[%emt 0:00:26]} 36. Bd6+ {[%emt 0:02:07]} 1-0

[Event "22nd OIBM 2018"]
[Site "Gmund am Tegernsee"]
[Date "2018.11.01"]
[Round "6"]
[White "Zeier, Klaus"]
[Black "Staudacher, Thomas"]
[Result "1-0"]
[ECO "B51"]
[WhiteElo "2228"]
[BlackElo "2004"]
[Annotator "NA"]
[PlyCount "61"]
[EventDate "2018.10.27"]
[EventType "swiss"]
[EventCountry "GER"]
[SourceTitle "playchess.com"]
[Source "ChessBase"]
[SourceQuality "1"]
[TimeControl "40/5400+30:1800+30"]

1. e4 {[%emt 0:00:00]} c5 {[%emt 0:00:00]} 2. Nf3 {[%emt 0:00:00]} d6 {[%emt 0:00:00]} 3. Bb5+ {[%emt 0:00:00]} Nd7 {[%emt 0:00:00]} 4. d4 {[%emt 0:00:45]} a6 {[%emt 0:01:04]} 5. Bxd7+ {[%emt 0:00:32]} Bxd7 {[%emt 0:00:03]} 6. c4 {[%emt 0:07:32]} cxd4 {[%emt 0:00:52]} 7. Qxd4 {[%emt 0:00:24]} e5 {[%emt 0:04:18]} 8. Qd3 {[%emt 0:01:38]} h6 {[%emt 0:05:34]} 9. Nc3 {[%emt 0:00:34]} Nf6 {[%emt 0:00:16]} 10. O-O {[%emt 0:01:30]} Be7 {[%emt 0:04:08]} 11. b3 {[%emt 0:02:21]} Rc8 {[%emt 0:06:09]} 12. Rd1 {[%emt 0:03:25]} O-O {[%emt 0:10:05]} 13. a4 {[%emt 0:09:54]} Be6 {[%emt 0:11:42]} 14. h3 {[%emt 0:20:28]} Qc7 {[%emt 0:14:50]} 15. Be3 {[%emt 0:00:51]} b6 {[%emt 0:08:50]} 16. Nh4 {[%emt 0:07:03]} Rfd8 {[%emt 0:06:32]} 17. Nf5 {[%emt 0:02:27]} Bxf5 {[%emt 0:07:09]} 18. exf5 {[%emt 0:00:03]} Qc6 {[%emt 0:00:46]} 19. Rac1 {[%emt 0:04:53]} Kf8 {[%emt 0:04:14]} 20. Qe2 {[%emt 0:01:28]} Qb7 {[%emt 0:02:07]} 21. Nd5 {[%emt 0:01:12]} Nxd5 {[%emt 0:02:35]} 22. Rxd5 {[%emt 0:00:04]} Bf6 {[%emt 0:03:18]} 23. Rcd1 {[%emt 0:00:26]} Ke7 {[%emt 0:03:14]} 24. Bd2 {[%emt 0:02:36]} Rc5 {[%emt 0:00:34]} 25. Rd3 {[%emt 0:00:11]} a5 {[%emt 0:01:17]} 26. Bc1 {[%emt 0:00:11]} e4 {[%emt 0:01:13]} 27. Ba3 {[%emt 0:01:17]} Be5 {[%emt 0:00:23]} 28. R3d2 {[%emt 0:01:06]} Rcc8 {[%emt 0:00:40]} 29. Rd5 {[%emt 0:00:13]} Kf6 {[%emt 0:00:57]} 30. Qxe4 {[%emt 0:00:56]} Re8 {[%emt 0:00:13]} 31. Rxd6+ {[%emt 0:00:49]} 1-0

[Event "22nd OIBM 2018"]
[Site "Gmund am Tegernsee"]
[Date "2018.11.01"]
[Round "6"]
[White "Pieper, Thomas"]
[Black "Noack, Mario"]
[Result "1-0"]
[ECO "B19"]
[WhiteElo "2213"]
[BlackElo "1949"]
[Annotator "NA"]
[PlyCount "77"]
[EventDate "2018.10.27"]
[EventType "swiss"]
[EventCountry "GER"]
[SourceTitle "playchess.com"]
[Source "ChessBase"]
[SourceQuality "1"]
[TimeControl "40/5400+30:1800+30"]

1. e4 {[%emt 0:05:32]} c6 {[%emt 0:00:00]} 2. d4 {[%emt 0:00:37]} d5 {[%emt 0:00:00]} 3. Nc3 {[%emt 0:00:05]} dxe4 {[%emt 0:00:06]} 4. Nxe4 {[%emt 0:00:05]} Bf5 {[%emt 0:00:15]} 5. Ng3 {[%emt 0:00:15]} Bg6 {[%emt 0:00:15]} 6. h4 {[%emt 0:00:18]} h6 {[%emt 0:00:07]} 7. Nf3 {[%emt 0:00:18]} Nd7 {[%emt 0:00:28]} 8. h5 {[%emt 0:00:07]} Bh7 {[%emt 0:00:14]} 9. Bd3 {[%emt 0:00:04]} Bxd3 {[%emt 0:00:10]} 10. Qxd3 {[%emt 0:00:05]} e6 {[%emt 0:00:32]} 11. Qe2 {[%emt 0:02:24]} Qc7 {[%emt 0:04:32]} 12. Bd2 {[%emt 0:00:45]} Ngf6 {[%emt 0:00:49]} 13. O-O-O {[%emt 0:00:39]} O-O-O {[%emt 0:00:29]} 14. Ne5 {[%emt 0:00:21]} Nb6 {[%emt 0:02:10]} 15. c4 {[%emt 0:00:09]} c5 {[%emt 0:13:12] B19: Classical Caro-Kann: 4...Bf5 main line} (15... Rxd4 16. Be3 Rxd1+ 17. Rxd1 Rg8 18. f4 Kb8 19. Qd3 Nc8 20. Qd8 Bd6 21. Qxc7+ Bxc7 22. Nxf7 Ng4 23. Bd2 Rf8 24. Ne5 Nxe5 25. fxe5 Bxe5 {0-1 (40) Petrosian,T (2568)-Khalifman,A (2662) Moscow 2005 CBM 106 [Lukacs,P]}) 16. Bf4 {[%emt 0:17:43]} Bd6 {[%emt 0:04:05]} 17. dxc5 {[%emt 0:00:37]} Qxc5 {[%emt 0:03:31]} 18. Kb1 {[%emt 0:19:17]} Bxe5 {[%emt 0:04:43]} 19. Bxe5 {[%emt 0:03:25]} Rxd1+ {[%emt 0:02:09]} 20. Rxd1 {[%emt 0:00:06]} Rd8 {[%emt 0:00:24]} 21. Rxd8+ {[%emt 0:01:17]} Kxd8 {[%emt 0:00:22]} 22. b3 $146 {[%emt 0:17:32]} ({Predecessor:} 22. Bxf6+ gxf6 23. Qd2+ Nd7 24. Ne4 Qxc4 25. Nxf6 Qf1+ 26. Kc2 Qc4+ 27. Kb1 {½-½ (28) Alavkin,A (2493)-Vorontsov,N (2300) Nabereznye Chelny 2007}) 22... Nbd7 {[%emt 0:02:34]} 23. Bb2 {[%emt 0:00:31]} Nxh5 {[%emt 0:04:33]} 24. Nxh5 {[%emt 0:00:41]} g6 {[%emt 0:02:12]} 25. Ng3 {[%emt 0:04:07]} h5 {[%emt 0:00:27]} 26. a3 {[%emt 0:01:10]} h4 {[%emt 0:01:25]} 27. Ne4 {[%emt 0:00:16]} Qf5 {[%emt 0:00:33]} 28. Ka2 {[%emt 0:00:27]} Ke7 $18 {[%emt 0:02:48]} 29. Qd3 {[%emt 0:05:55]} Qf4 {[%emt 0:02:46]} 30. g3 {[%emt 0:02:01]} hxg3 {[%emt 0:00:45]} 31. fxg3 {[%emt 0:00:05]} Qc7 {[%emt 0:00:51]} 32. Qd4 {[%emt 0:00:52]} e5 {[%emt 0:01:18]} 33. Qxa7 {[%emt 0:01:01]} f5 {[%emt 0:00:21]} 34. Nc3 {[%emt 0:00:16]} Qc6 {[%emt 0:03:14]} 35. Nd5+ {[%emt 0:00:15]} Ke6 {[%emt 0:01:21]} 36. Qa8 {[%emt 0:00:59]} Nf6 {[%emt 0:01:24]} 37. Qh8 {[%emt 0:01:12]} Kf7 {[%emt 0:02:55]} 38. Qd8 {[%emt 0:02:00]} b5 {[%emt 0:03:23]} 39. Qe7+ {[%emt 0:00:25]} 1-0

[Event "22nd OIBM 2018"]
[Site "Gmund am Tegernsee"]
[Date "2018.11.01"]
[Round "6"]
[White "Gohla, Ulf"]
[Black "Meins, Gerlef"]
[Result "1/2-1/2"]
[ECO "E38"]
[WhiteElo "2158"]
[BlackElo "2408"]
[Annotator "ChessBase"]
[PlyCount "59"]
[EventDate "2018.10.27"]
[EventType "swiss"]
[EventCountry "GER"]
[SourceTitle "playchess.com"]
[Source "ChessBase"]
[SourceQuality "1"]
[TimeControl "40/5400+30:1800+30"]

1. d4 {[%emt 0:00:00]} Nf6 {[%emt 0:00:00]} 2. c4 {[%emt 0:00:00]} e6 {[%emt 0:00:00]} 3. Nc3 {[%emt 0:00:00]} Bb4 {[%emt 0:00:00]} 4. Qc2 {[%emt 0:00:00]} c5 {[%emt 0:03:51]} 5. dxc5 {[%emt 0:00:00]} Na6 {[%emt 0:02:28]} 6. a3 {[%emt 0:00:00]} Bxc3+ {[%emt 0:01:00]} 7. Qxc3 {[%emt 0:00:00]} Nxc5 {[%emt 0:00:18]} 8. b4 {[%emt 0:01:43]} Nce4 {[%emt 0:03:51]} 9. Qd4 {[%emt 0:02:16]} d5 {[%emt 0:01:18]} 10. c5 {[%emt 0:02:11]} b6 {[%emt 0:02:50]} 11. f3 {[%emt 0:01:06]} bxc5 {[%emt 0:00:36]} 12. bxc5 {[%emt 0:00:06]} Qa5+ {[%emt 0:01:34]} 13. Qb4 {[%emt 0:00:05]} Qxb4+ {[%emt 0:00:13]} 14. axb4 {[%emt 0:00:02]} Nc3 {[%emt 0:00:08]} 15. e3 {[%emt 0:09:15]} e5 {[%emt 0:09:46]} 16. Bb2 {[%emt 0:07:46]} d4 {[%emt 0:00:10]} 17. Bxc3 {[%emt 0:03:24]} dxc3 {[%emt 0:00:03]} 18. Bb5+ {[%emt 0:08:56]} Ke7 {[%emt 0:09:02]} 19. Ne2 {[%emt 0:13:54]} a6 {[%emt 0:07:11]} 20. Nxc3 {[%emt 0:07:02]} Rb8 {[%emt 0:00:54]} 21. Bxa6 {[%emt 0:03:15]} Rxb4 {[%emt 0:07:35]} 22. Be2 {[%emt 0:04:23]} Bb7 {[%emt 0:09:47]} 23. Kf2 {[%emt 0:05:35]} Rc8 {[%emt 0:11:35]} 24. Rhb1 {[%emt 0:07:10]} Rxb1 {[%emt 0:00:33]} 25. Rxb1 {[%emt 0:00:01]} Bc6 {[%emt 0:04:23]} 26. Bb5 {[%emt 0:07:27]} Nd7 {[%emt 0:02:37]} 27. Na4 {[%emt 0:04:43]} Rb8 {[%emt 0:05:11]} 28. Nb6 {[%emt 0:02:04]} Bxb5 {[%emt 0:01:32]} 29. Rxb5 {[%emt 0:00:04]} Ke6 {[%emt 0:01:47]} 30. e4 {[%emt 0:04:27]} 1/2-1/2

[Event "22nd OIBM 2018"]
[Site "Gmund am Tegernsee"]
[Date "2018.11.01"]
[Round "6"]
[White "Schatz, Christian"]
[Black "Zajogin, Alexander"]
[Result "0-1"]
[ECO "A05"]
[WhiteElo "2153"]
[BlackElo "2408"]
[Annotator "ChessBase"]
[PlyCount "86"]
[EventDate "2018.10.27"]
[EventType "swiss"]
[EventCountry "GER"]
[SourceTitle "playchess.com"]
[Source "ChessBase"]
[SourceQuality "1"]
[TimeControl "40/5400+30:1800+30"]

1. Nf3 {[%emt 0:00:00]} Nf6 {[%emt 0:00:00]} 2. d4 {[%emt 0:00:41]} e6 {[%emt 0:00:00]} 3. g3 {[%emt 0:01:04]} b5 {[%emt 0:03:00]} 4. a4 {[%emt 0:01:04]} b4 {[%emt 0:00:28]} 5. c4 {[%emt 0:00:44]} c5 {[%emt 0:03:09]} 6. Bg2 {[%emt 0:03:00]} d5 {[%emt 0:01:39]} 7. O-O {[%emt 0:01:13]} cxd4 {[%emt 0:07:24]} 8. Nxd4 {[%emt 0:13:51]} Be7 {[%emt 0:09:11]} 9. Bf4 {[%emt 0:04:34]} Bb7 {[%emt 0:03:40]} 10. Nb5 {[%emt 0:01:09]} Na6 {[%emt 0:03:19]} 11. Nd2 {[%emt 0:01:34]} O-O {[%emt 0:02:23]} 12. Rc1 {[%emt 0:05:44]} Nc5 {[%emt 0:13:26]} 13. Be3 {[%emt 0:16:04]} a6 {[%emt 0:31:19]} 14. cxd5 {[%emt 0:11:42]} axb5 {[%emt 0:00:07]} 15. Bxc5 {[%emt 0:00:49]} Bxc5 {[%emt 0:00:48]} 16. Rxc5 {[%emt 0:00:11]} bxa4 {[%emt 0:01:16]} 17. Rb5 {[%emt 0:06:29]} Qd7 {[%emt 0:03:18]} 18. Rxb4 {[%emt 0:05:24]} Nxd5 {[%emt 0:02:14]} 19. Rh4 {[%emt 0:01:59]} Qb5 {[%emt 0:03:14]} 20. Qb1 {[%emt 0:09:29]} h6 {[%emt 0:00:27]} 21. Ne4 {[%emt 0:02:02]} Rfd8 {[%emt 0:00:51]} 22. e3 {[%emt 0:00:30]} f5 {[%emt 0:04:10]} 23. Nc3 {[%emt 0:01:02]} Nxc3 {[%emt 0:00:05]} 24. bxc3 {[%emt 0:00:11]} Qxb1 {[%emt 0:00:13]} 25. Rxb1 {[%emt 0:00:06]} Bxg2 {[%emt 0:00:10]} 26. Kxg2 {[%emt 0:00:03]} a3 {[%emt 0:00:13]} 27. Rhb4 {[%emt 0:02:06]} a2 {[%emt 0:00:30]} 28. Ra1 {[%emt 0:00:07]} Rd2 {[%emt 0:00:11]} 29. e4 {[%emt 0:02:54]} Ra3 {[%emt 0:00:54]} 30. exf5 {[%emt 0:00:55]} exf5 {[%emt 0:00:27]} 31. Rd4 {[%emt 0:03:49]} Rxd4 {[%emt 0:01:56]} 32. cxd4 {[%emt 0:00:04]} Kf7 {[%emt 0:00:05]} 33. Kf1 {[%emt 0:01:41]} Ke6 {[%emt 0:00:03]} 34. Ke2 {[%emt 0:00:06]} Kd5 {[%emt 0:00:05]} 35. Kd2 {[%emt 0:00:08]} Kc4 {[%emt 0:00:39]} 36. Kc2 {[%emt 0:00:15]} Rf3 {[%emt 0:00:07]} 37. Rf1 {[%emt 0:01:28]} Rxf2+ {[%emt 0:00:07]} 38. Rxf2 {[%emt 0:00:05]} a1=Q {[%emt 0:00:05]} 39. Rd2 {[%emt 0:00:55]} Qa4+ {[%emt 0:00:23]} 40. Kb2 {[%emt 0:00:25]} Qb3+ {[%emt 0:00:17]} 41. Kc1 {[%emt 0:30:11]} Kc3 {[%emt 0:30:50]} 42. Rf2 {[%emt 0:00:31]} Kxd4 {[%emt 0:01:44]} 43. Kd2 {[%emt 0:00:22]} Ke5 0-1

[Event "22nd OIBM 2018"]
[Site "Gmund am Tegernsee"]
[Date "2018.11.01"]
[Round "6"]
[White "Kick, Joachim"]
[Black "Stark, Lars"]
[Result "0-1"]
[ECO "A17"]
[WhiteElo "2070"]
[BlackElo "2374"]
[Annotator "NA"]
[PlyCount "58"]
[EventDate "2018.10.27"]
[EventType "swiss"]
[EventCountry "GER"]
[SourceTitle "playchess.com"]
[Source "ChessBase"]
[SourceQuality "1"]
[TimeControl "40/5400+30:1800+30"]

1. Nf3 {[%emt 0:00:00]} Nf6 {[%emt 0:00:00]} 2. c4 {[%emt 0:00:00]} e6 {[%emt 0:00:01]} 3. Nc3 {[%emt 0:00:00]} Bb4 {[%emt 0:01:07]} 4. Qc2 {[%emt 0:00:18]} c5 {[%emt 0:01:27]} 5. a3 {[%emt 0:00:42]} Ba5 {[%emt 0:00:26]} 6. g3 {[%emt 0:01:37]} Nc6 {[%emt 0:01:03]} 7. Bg2 {[%emt 0:00:46]} O-O {[%emt 0:00:14]} 8. O-O {[%emt 0:04:43]} d6 {[%emt 0:06:04]} 9. e3 {[%emt 0:01:44] A17: English Opening: 1...Nf6 with ...Bb4} e5 {[%emt 0:12:22]} 10. b3 {[%emt 0:11:00]} (10. Nd5 h6 11. Rb1 Nxd5 12. cxd5 Ne7 13. b4 cxb4 14. axb4 Bb6 15. Qb3 Bg4 16. d3 f5 {0-1 (29) Shchekachev,A (2540)-Rodshtein,M (2678) Brest 2018}) 10... h6 {[%emt 0:15:37]} 11. d4 $146 {[%emt 0:12:38]} ({Predecessor:} 11. Bb2 Bg4 12. Nh4 Qd7 13. f4 Bxc3 14. Bxc3 Rfe8 15. e4 Nh7 16. d3 Rab8 {0-1 (16) Ranaivojaona,R (1881)-Guidici,G (2327) France AJEC 2002}) 11... Bxc3 {[%emt 0:09:08]} 12. Qxc3 {[%emt 0:00:08]} cxd4 {[%emt 0:00:41]} 13. exd4 {[%emt 0:00:10]} e4 {[%emt 0:00:06]} 14. Nd2 {[%emt 0:01:37]} d5 {[%emt 0:00:04]} 15. Bb2 {[%emt 0:03:29]} Bg4 {[%emt 0:05:31]} 16. f3 {[%emt 0:05:18]} exf3 {[%emt 0:00:08]} 17. Nxf3 {[%emt 0:00:17]} Bxf3 {[%emt 0:03:25]} 18. Bxf3 {[%emt 0:05:00]} Re8 {[%emt 0:01:35]} 19. Rae1 {[%emt 0:01:21]} Qd7 {[%emt 0:01:55]} 20. b4 {[%emt 0:05:34]} a6 {[%emt 0:01:28]} 21. c5 {[%emt 0:16:27]} Rxe1 {[%emt 0:01:49]} 22. Rxe1 {[%emt 0:00:07]} Re8 {[%emt 0:00:38]} 23. Kg2 Rxe1 {[%emt 0:07:35]} 24. Qxe1 {[%emt 0:14:05]} Qf5 {[%emt 0:00:08]} 25. Qe2 {[%emt 0:03:41]} Qb1 {[%emt 0:01:09]} 26. b5 {[%emt 0:04:16]} axb5 {[%emt 0:00:16]} 27. Qxb5 {[%emt 0:00:09]} Nxd4 {[%emt 0:00:17]} 28. Qxb7 {[%emt 0:03:16]} Qc2+ {[%emt 0:00:31]} 29. Kh3 {[%emt 0:00:07]} Qf5+ {[%emt 0:00:24]} 0-1